Workbook

Sheet Forside
C3: Holdbarhetsforsøk
C5: Modell: | D5: Batch-metode | G5: (basert på en eldre utgave av regneark)
C8: Forsøket er utført ved:
C9: Utført I perioden: | D9: 2015
C10: Kontaktperson: | D10: Siw Berbu
C11: (navn, epost eller telefonnr.)
C12: Navn på komponent: | D12: Kobalamin
C13: Prøvemateriale: | D13: Serum

Sheet Beskrivelse av forsøket
A1: BESKRIVELSE AV FORSØKET
A2: S-Kobalamin
A3: Komponent
A4: Hvilket instrument er benyttet?
A5: Cobas 8000, e602
A7: Hvilken analysemetode er benyttet?
A8: S-vitamin B12
A10: Hvilket reagens er benyttet?
A13: Er forsøket gjennomført under tilsvarende betingelser som de som gjelder ved vanlig rutinedrift (kryss av):
B14: ja, gjennomført under rutinebetingelser
B15: ja, rutinebetingelser er simulert
B16: nei
A18: Hvilke transportformer er testet/simulert?
B19: Postgang
B20: Hentetjeneste
B21: Rørpost
B22: Annet:
A24: NB! Sett inn flere rader dersom du trenger det.
A25: Gi en beskrivelse av hver betingelse: | B25: Betingelse 0 (Ref) | C25: 3 dager i kjøleskap | D25: 4 dager i kjøleskap
A26: Prøverør type
A27: Tid fra prøvetaking til sentrifugering (min.)
A28: Tid fra prøvetaking til analysering (min/timer/dager/uker)
A29: Tid fra sentrifugering til analysering (min/timer/dager/uker)
A30: Temperatur før sentrifugering (◦C)
A31: Temperatur etter sentrifugering (◦C)
A32: Sentrifugeringsegenskaper*:
A33: Hastighet (G)
A34: Temperatur (◦C)
A35: Tid (min.)
A36: Spesielle betingelser
A37: Luftfuktighet (g/m3)
A38: pH
A39: Bruk av tørris (bare noter hvis brukt)
A40: Har prøven vært frosset? Oppgi temperatur | B40: frosset samme dag som prøvetaking | C40: frosset etter 3 dager i kjøleskap | D40: frosset etter 4 dager i kjøleskap
A41: Andre betingelser (oppgi)
A43: *Dersom det er brukt dobbel sentrifugeringstid angis hastighet / tid / temperatur både for 1. og 2. sentrifugering

Sheet Replikater
A1: Stabilitet med replikater | H1: p (for ensidig test): | K1: 0.05 | L1: =" dvs. "&100*(1-2*p)&" % konfidensintervall" -> dvs. 90 % konfidensintervall
A2: Tid nr | B2: Tid | C2: Avvik (D) | D2: D-U | E2: D+U | F2: Mål 1 | G2: Mål 2 | H2: Mt-Mo | I2: M | J2: s | K2: CV | L2: N | M2: U/M | N2: R1 | O2: R2 | P2: R3 | Q2: R4 | R2: R5 | S2: R6 | T2: R7 | U2: R8 | V2: R9 | W2: R10
F3: 0.05 | G3: 0.1
A4: Prøve 1 | J4: =IF(L4=0,"",SQRT(SUM(Z5:Z12)/L4)) -> 6.012271402 | K4: =IF(L4=0,"",J4/M1_) -> 0.01340648308 | L4: =SUM(L5:L12)-COUNT(L5:L12) -> 27 | M4: =IF(L4=0,"",CV1_^2/L5+uco^2) -> 1.797337886e-05
A5: 0 | B5: 0 | C5: 0 | F5: =F3 -> 0.05 | G5: =G3 -> 0.1 | H5: =IF(L5="","",I5-M1_) -> 0 | I5: =IF(L5="","",AVERAGE(N5:W5)*Mc/I32) -> 448.46 | J5: =IF(L5="","",STDEV(N5:W5)) -> 7.523917419 | K5: =IF(L5="","",J5/I5) -> 0.0167772319 | L5: =IF(COUNT(N5:W5)=0,"",COUNT(N5:W5)) -> 10 | M5: =IF(L5="","",SQRT(CV1_^2/L5+M32^2+M$4)*TINV(2*p,f1_)) -> 0.01021217063 | N5: 455.9 | O5: 449.3 | P5: 445.8 | Q5: 453 | R5: 445.4 | S5: 436.2 | T5: 453 | U5: 435.9 | V5: 454.4 | W5: 455.7 | X5: =-F5 -> -0.05 | Y5: =-G5 -> -0.1 | Z5: =IF(L5="","",J5^2*(L5-1)) -> 509.484
A6: 1 | B6: 24 | C6: =IF(L6="","",I6/M1_-1) ->  | D6: =IF(L6="","",C6-M6) ->  | E6: =IF(L6="","",C6+M6) ->  | F6: =F5 -> 0.05 | G6: =G5 -> 0.1 | J6: =IF(L6="","",STDEV(N6:W6)) ->  | L6: =IF(COUNT(N6:W6)=0,"",COUNT(N6:W6)) ->  | M6: =IF(L6="","",SQRT((CV1_^2/L6+M33^2)*(I6/M1_*Mc/I33)^2+M$4)*TINV(2*p,f1_)) ->  | X6: =-F6 -> -0.05 | Y6: =-G6 -> -0.1
A7: 2 | B7: 48 | F7: =F6 -> 0.05 | G7: =G6 -> 0.1 | X7: -0.05 | Y7: -0.1
A8: 3 | B8: 72 | C8: 0.004548900682 | D8: -0.005686523377 | E8: 0.01478432474 | F8: 0.05 | G8: 0.1 | H8: 2.04 | I8: 450.5 | J8: 6.245887536 | K8: 0.01386434525 | L8: 10 | M8: 0.01023542406 | N8: 455.8 | O8: 448.4 | P8: 446.2 | Q8: 447.9 | R8: 464.4 | S8: 449.7 | T8: 442.5 | U8: 453.5 | V8: 445.4 | W8: 451.2 | X8: -0.05 | Y8: -0.1 | Z8: 351.1
A9: 4 | B9: 96 | C9: 0.02087142666 | D9: 0.01055213443 | E9: 0.03119071889 | F9: 0.05 | G9: 0.1 | H9: 9.36 | I9: 457.82 | J9: 3.580751008 | K9: 0.007821307517 | L9: 10 | M9: 0.01031929223 | N9: 462.5 | O9: 463.3 | P9: 450.9 | Q9: 457.6 | R9: 458.2 | S9: 457.1 | T9: 458.9 | U9: 458.5 | V9: 456.9 | W9: 454.3 | X9: -0.05 | Y9: -0.1 | Z9: 115.396
A10: 5 | F10: 0.05 | G10: 0.1 | X10: -0.05 | Y10: -0.1
A11: 6 | F11: 0.05 | G11: 0.1 | X11: -0.05 | Y11: -0.1
A12: 7 | F12: 0.05 | G12: 0.1 | X12: -0.05 | Y12: -0.1
A13: Prøve 2 | J13: =IF(L13=0,"",SQRT(SUM(Z14:Z21)/L13)) -> 6.811555524 | K13: =IF(L13=0,"",J13/M2_) -> 0.01563251446 | L13: =SUM(L14:L21)-COUNT(L14:L21) -> 27 | M13: =IF(L13=0,"",CV2_^2/L14+uco^2) -> 2.443755082e-05
A14: 0 | B14: =B5 -> 0 | C14: =IF(L14="","",I14/M2_-1) -> 0 | F14: =F3 -> 0.05 | G14: =G3 -> 0.1 | H14: =IF(L14="","",I14-M2_) -> 0 | I14: =IF(L14="","",AVERAGE(N14:W14)*Mc/I32) -> 435.73 | J14: =IF(L14="","",STDEV(N14:W14)) -> 9.069736 | K14: =IF(L14="","",J14/I14) -> 0.02081503683 | L14: =IF(COUNT(N14:W14)=0,"",COUNT(N14:W14)) -> 10 | M14: =IF(L14="","",SQRT(CV2_^2/L14+M32^2+M$13)*TINV(2*p,f2_)) -> 0.01190781386 | N14: 421.5 | O14: 433.4 | P14: 429.5 | Q14: 422.8 | R14: 433.6 | S14: 447.4 | T14: 443.5 | U14: 439 | V14: 443.2 | W14: 443.4 | X14: =-F14 -> -0.05 | Y14: =-G14 -> -0.1 | Z14: =IF(L14="","",J14^2*(L14-1)) -> 740.341
A15: 1 | B15: =IF(B6="","",B6) -> 24 | D15: =IF(L15="","",C15-M15) ->  | E15: =IF(L15="","",C15+M15) ->  | F15: =F14 -> 0.05 | G15: =G14 -> 0.1 | J15: =IF(L15="","",STDEV(N15:W15)) ->  | L15: =IF(COUNT(N15:W15)=0,"",COUNT(N15:W15)) ->  | X15: -0.05 | Y15: -0.1
A16: 2 | B16: =IF(B7="","",B7) -> 48 | F16: =F15 -> 0.05 | G16: =G15 -> 0.1 | X16: -0.05 | Y16: -0.1
A17: 3 | B17: 72 | C17: 0.060014229 | D17: 0.04810641514 | E17: 0.07192204285 | F17: 0.05 | G17: 0.1 | H17: 26.15 | I17: 461.88 | J17: 3.532012332 | K17: 0.00764703458 | L17: 10 | M17: 0.01190781386 | N17: 457.1 | O17: 457.7 | P17: 465.5 | Q17: 461.8 | R17: 466.1 | S17: 461.1 | T17: 460.8 | U17: 467.8 | V17: 460.7 | W17: 460.2 | X17: -0.05 | Y17: -0.1 | Z17: 112.276
A18: 4 | B18: 96 | C18: 0.04666926767 | D18: 0.03476145381 | E18: 0.05857708152 | F18: 0.05 | G18: 0.1 | H18: 20.3352 | I18: 456.0652 | J18: 6.667581551 | K18: 0.01461979899 | L18: 10 | M18: 0.01190781386 | N18: 473.5 | O18: 454.6 | P18: 451.9 | Q18: 450.9 | R18: 458.6 | S18: 458.7 | T18: 453.3 | U18: 453.7 | V18: 453.452 | W18: 452 | X18: -0.05 | Y18: -0.1 | Z18: 400.1097936
A19: 5 | F19: 0.05 | G19: 0.1 | X19: -0.05 | Y19: -0.1
A20: 6 | F20: 0.05 | G20: 0.1 | X20: -0.05 | Y20: -0.1
A21: 7 | F21: 0.05 | G21: 0.1 | X21: -0.05 | Y21: -0.1
A22: Prøve 3 | J22: =IF(L22=0,"",SQRT(SUM(Z23:Z30)/L22)) -> 5.425638723 | K22: =IF(L22=0,"",J22/M3_) -> 0.01249024776 | L22: =SUM(L23:L30)-COUNT(L23:L30) -> 27 | M22: =IF(L22=0,"",CV3_^2/L23+uco^2) -> 1.56006289e-05
A23: 0 | B23: =B14 -> 0 | C23: =IF(L23="","",I23/M3_-1) -> 0 | F23: =F12 -> 0.05 | G23: =G12 -> 0.1 | H23: =IF(L23="","",I23-M3_) -> 0 | I23: =IF(L23="","",AVERAGE(N23:W23)*Mc/I32) -> 434.39 | J23: =IF(L23="","",STDEV(N23:W23)) -> 7.395711971 | K23: =IF(L23="","",J23/I23) -> 0.01702551157 | L23: =IF(COUNT(N23:W23)=0,"",COUNT(N23:W23)) -> 10 | M23: =IF(L23="","",SQRT(CV3_^2/L23+M32^2+M$22)*TINV(2*p,f3_)) -> 0.009514243262 | N23: 429.3 | O23: 441.1 | P23: 434.1 | Q23: 444.7 | R23: 431.4 | S23: 434.8 | T23: 430.8 | U23: 446.3 | V23: 425.9 | W23: 425.5 | X23: =-F23 -> -0.05 | Y23: =-G23 -> -0.1 | Z23: =IF(L23="","",J23^2*(L23-1)) -> 492.269
A24: 1 | B24: =IF(B15="","",B15) -> 24 | D24: =IF(L24="","",C24-M24) ->  | E24: =IF(L24="","",C24+M24) ->  | F24: =F23 -> 0.05 | G24: =G23 -> 0.1 | J24: =IF(L24="","",STDEV(N24:W24)) ->  | L24: =IF(COUNT(N24:W24)=0,"",COUNT(N24:W24)) ->  | X24: -0.05 | Y24: -0.1
A25: 2 | B25: =IF(B16="","",B16) -> 48 | F25: =F24 -> 0.05 | G25: =G24 -> 0.1 | X25: -0.05 | Y25: -0.1
A26: 3 | B26: 72 | C26: 0.003936554709 | D26: -0.005577688553 | E26: 0.01345079797 | F26: 0.05 | G26: 0.1 | H26: 1.71 | I26: 436.1 | J26: 3.919467084 | K26: 0.008987542041 | L26: 10 | M26: 0.009514243262 | N26: 429.6 | O26: 437.7 | P26: 434.1 | Q26: 441 | R26: 439 | S26: 436.8 | T26: 436.1 | U26: 441.5 | V26: 431.4 | W26: 433.8 | X26: -0.05 | Y26: -0.1 | Z26: 138.26
A27: 4 | B27: 96 | C27: -0.05188885564 | D27: -0.0614030989 | E27: -0.04237461237 | F27: 0.05 | G27: 0.1 | H27: -22.54 | I27: 411.85 | J27: 4.272457008 | K27: 0.01037381816 | L27: 10 | M27: 0.009514243262 | N27: 409.6 | O27: 408.7 | P27: 402.7 | Q27: 411.1 | R27: 415.4 | S27: 412 | T27: 416 | U27: 411 | V27: 416 | W27: 416 | X27: -0.05 | Y27: -0.1 | Z27: 164.285
A28: 5 | F28: 0.05 | G28: 0.1 | X28: -0.05 | Y28: -0.1
A29: 6 | F29: 0.05 | G29: 0.1 | X29: -0.05 | Y29: -0.1
A30: 7 | F30: 0.05 | G30: 0.1 | X30: -0.05 | Y30: -0.1
A31: Kontrollprøve | I31: =AVERAGE(I32:I39) -> 1 | J31: =IF(L31=0,0,SQRT(SUM(Z32:Z39)/L31)) -> 0 | K31: =J31/Mc -> 0 | L31: =SUM(L32:L39)-COUNT(L32:L39) -> 0 | M31: =IF(L31=0,0,CVc/SQRT(L32)) -> 0
A32: 0 | B32: =B14 -> 0 | C32: Kontrollprøver brukes bare hvis det er umulig å finne en måte å oppbevare prøvene stabilt på! | I32: =IF(L$31=0,1,IF(L32="","",AVERAGE(N32:W32))) -> 1 | J32: =IF(L32="","",IF(L32>1,STDEV(N32:W32),0)) ->  | K32: =IF(L32="","",J32/I32) ->  | L32: =IF(COUNT(N32:W32)=0,"",COUNT(N32:W32)) ->  | M32: =IF(L32="",0,CVc/SQRT(L32)) -> 0 | Z32: =IF(L32="","",J32^2*(L32-1)) -> 
A33: 1 | B33: =B15 -> 24 | I33: =IF(L$31=0,1,IF(L33="","",AVERAGE(N33:W33))) -> 1 | J33: =IF(L33="","",IF(L33>1,STDEV(N33:W33),0)) ->  | L33: =IF(COUNT(N33:W33)=0,"",COUNT(N33:W33)) ->  | M33: =IF(L33="",0,CVc/SQRT(L33)) -> 0
A34: 2 | B34: 48 | I34: 1 | M34: =IF(L34="",0,CVc/SQRT(L34)) -> 0
A35: 3 | B35: 72 | I35: 1 | M35: 0
A36: 4 | B36: 96 | I36: 1 | M36: 0
A37: 5 | I37: 1 | M37: 0
A38: 6 | I38: 1 | M38: 0
A39: 7 | I39: 1 | M39: 0
B57: Betegnelse | H57: Prøve | L57: Kontroll
A58: 1 | B58: Middelverdi for tid i | H58: Mpi | L58: Mki
A59: 2 | B59: Middel av middelverdier | L59: K
A60: 3 | B60: Standard avvik for tid i | H60: Spi | L60: Ski
A61: 4 | B61: Antall replikater for tid i | H61: Npi | L61: Nki
A62: 5 | B62: Antall målte verdier | H62: Np = SNpi | L62: Nk = SNki
A63: 6 | B63: Antall tidspunkter | H63: t | L63: t
A64: 7 | B64: Felles S | H64: Sp = SSpi(Npi-1)/(Np-t) | L64: Sk = SSki(Nki-1)/(Nk-t)
A65: 8 | B65: Felles CV | H65: CVp = Sp/Mpo | L65: CVk = Sk/Mko
A66: 9 | B66: Relativ standard usikkerhet (uM/M) | H66: uMpi/Mpi @ CVp/√Npi | L66: uMki/Mki @ CVk/√Nki

Sheet Konklusjon
B3: Vurdering av funn og annen viktig informasjon til forsøket
B4: To av de tre prøvene viser økende konsentrasjon, en prøve viser redusert konsentrasjon i forhold til 0-verdi. Mean samt hele konfidensintervall for alle 3 prøver er innenfor akseptkrensen vår på ±10% ved alle tidspunkt.
B15: Konklusjon
B16: Holdbarhet oppfyller kravet vårt. Vitamin B12 i serum anses som holdbart i 4 dager ved 2-8 °C.
B23: Dato og signatur: 08.10.2015 LS
